bitfinex-derivatives/quotes_BTCF0:USTF0_20250609
["timestamp","ask_amount","ask_price","bid_price","bid_amount"]
[1749502808761,0.719574,108700.0,108690.0,0.29190589]
[1749502808959,0.719574,108700.0,108690.0,0.43458514]
[1749502808960,0.92890952,108700.0,108690.0,0.43458514]
[1749502809162,1.080374,108700.0,108690.0,0.43458514]
[1749502809466,1.080374,108700.0,108690.0,0.29190589]
[1749502810958,1.080094,108700.0,108690.0,0.29190589]
[1749502811152,0.648734,108700.0,108690.0,0.29190589]
[1749502811354,1.080054,108700.0,108690.0,0.29190589]
[1749502812059,1.080054,108700.0,108690.0,0.28784929]
[1749502812653,0.719254,108700.0,108690.0,0.28784929]
[1749502812861,0.719254,108700.0,108690.0,0.64026406]
[1749502813056,0.184294,108700.0,108690.0,0.49758481]
[1749502813257,0.53532,108700.0,108690.0,1.34306406]
[1749502813458,0.53492,108700.0,108690.0,1.20038481]
[1749502813658,0.53532,108700.0,108690.0,1.34306406]
[1749502813860,0.92894962,108700.0,108690.0,1.13332854]
[1749502814162,0.92894962,108700.0,108690.0,0.88332854]
[1749502815061,0.93300622,108700.0,108690.0,0.88332854]
[1749502815360,0.7232707,108700.0,108690.0,0.88332854]
[1749502815559,0.5393766,108700.0,108690.0,0.88332854]
[1749502815759,0.7232707,108700.0,108690.0,0.74064929]
[1749502816555,0.5393766,108700.0,108690.0,0.74064929]
[1749502816755,0.7232706,108700.0,108690.0,0.74064929]
[1749502817761,0.5393766,108700.0,108690.0,0.74064929]
[1749502817963,0.0044566,108700.0,108690.0,0.95038481]
[1749502818263,0.5393766,108700.0,108690.0,0.95038481]
[1749502819460,2.0393766,108700.0,108690.0,0.95038481]
[1749502820761,2.0393766,108700.0,108690.0,0.85838481]
[1749502822366,2.0393766,108700.0,108690.0,0.64864929]
[1749502823867,2.0385366,108700.0,108690.0,0.64864929]
[1749502824162,2.0385366,108700.0,108690.0,0.85838481]
[1749502824666,2.2224306,108700.0,108690.0,0.85838481]
[1749502824864,2.2224306,108700.0,108690.0,1.00106406]
[1749502825264,2.0382966,108700.0,108690.0,1.00106406]
[1749502825467,2.2221906,108700.0,108690.0,1.00106406]
[1749502826064,2.2221906,108700.0,108690.0,0.79132854]
[1749502826870,2.2221906,108700.0,108690.0,1.00106406]
[1749502829873,2.0382966,108700.0,108690.0,1.00106406]
[1749502835577,2.2221906,108700.0,108690.0,1.00106406]
[1749502835776,2.0382966,108700.0,108690.0,1.00106406]
[1749502837280,2.24801219,108700.0,108690.0,1.00104413]
[1749502837484,2.24801219,108700.0,108690.0,1.20163862]
[1749502838081,2.24801219,108700.0,108690.0,1.05895937]
[1749502839083,2.0382966,108700.0,108690.0,1.05895937]
[1749502839276,2.24801219,108700.0,108690.0,1.05895937]
[1749502839471,2.0382966,108700.0,108690.0,1.05895937]
[1749502839676,2.24801219,108700.0,108690.0,1.05895937]
[1749502840183,2.0382966,108700.0,108690.0,1.05895937]
[1749502840382,2.24801219,108700.0,108690.0,1.05895937]
[1749502843283,1.71417219,108700.0,108690.0,1.05895937]
[1749502843487,2.0358166,108700.0,108690.0,1.05895937]
[1749502847084,2.24553219,108700.0,108690.0,0.84924378]
[1749502847390,2.24553219,108700.0,108690.0,1.05895937]
[1749502853186,2.24461219,108700.0,108690.0,1.05895937]
[1749502853588,2.0348966,108700.0,108690.0,1.05895937]
[1749502855291,2.0348966,108700.0,108690.0,0.84924378]
[1749502855594,2.0348966,108700.0,108690.0,1.05895937]
[1749502857996,2.0328566,108700.0,108690.0,1.05895937]
[1749502858998,2.24257219,108700.0,108690.0,1.05895937]
[1749502860197,2.0328566,108700.0,108690.0,1.05895937]
[1749502860799,2.0328566,108700.0,108690.0,1.07275937]
[1749502861296,2.0328566,108700.0,108690.0,0.86304378]
[1749502861599,2.0328566,108700.0,108690.0,1.07275937]
[1749502862794,2.0328566,108700.0,108690.0,1.07735937]
[1749502864801,2.0336166,108700.0,108690.0,1.07735937]
[1749502866800,1.5044566,108700.0,108690.0,1.07735937]
[1749502867297,0.0044566,108700.0,108690.0,1.28707496]
[1749502867501,0.5336966,108700.0,108690.0,1.28707496]
[1749502867907,2.0332966,108700.0,108690.0,1.07735937]
[1749502868201,2.0336966,108700.0,108690.0,1.07735937]
[1749502868904,2.0336966,108700.0,108690.0,1.28707496]
[1749502869298,2.0336966,108700.0,108690.0,1.01066833]
[1749502869602,2.0336966,108700.0,108690.0,1.01978943]
[1749502869800,2.0336966,108700.0,108690.0,0.87676488]
[1749502869996,2.0332966,108700.0,108690.0,0.87676488]
[1749502870196,2.0336966,108700.0,108690.0,1.01976565]
[1749502870794,2.0336966,108700.0,108690.0,0.81005006]
[1749502871000,2.0336966,108700.0,108690.0,1.01976565]
[1749502871201,2.0336966,108700.0,108690.0,0.81005006]
[1749502871593,2.0336966,108700.0,108690.0,1.01976565]
[1749502872296,1.6056566,108700.0,108690.0,1.22948124]
[1749502872497,1.5040566,108700.0,108690.0,0.81005006]
[1749502872697,2.0367766,108700.0,108690.0,1.01976565]
[1749502873493,1.5044566,108700.0,108690.0,0.87676488]
[1749502873692,2.0369366,108700.0,108690.0,0.87676488]
[1749502873893,2.0369366,108700.0,108690.0,1.08648047]
[1749502874506,1.5044566,108700.0,108690.0,1.08648047]
[1749502874710,1.9358566,108700.0,108690.0,1.08648047]
[1749502875405,1.5044566,108700.0,108690.0,1.08648047]
[1749502875610,1.9357766,108700.0,108690.0,1.08648047]
[1749502875909,1.9357766,108700.0,108690.0,1.22948124]
[1749502875910,1.9353766,108700.0,108690.0,1.22948124]
[1749502876099,1.9357766,108700.0,108690.0,1.22948124]
[1749502878408,0.1022,108720.0,108690.0,1.34728583]
[1749502878605,0.1022,108720.0,108710.0,0.75439269]
[1749502878906,0.80477559,108720.0,108710.0,0.75439269]
[1749502879097,0.8934625,108720.0,108710.0,0.75439269]
[1749502879305,0.8934625,108720.0,108710.0,0.39359269]
[1749502879707,0.8944625,108720.0,108710.0,0.39359269]
[1749502879909,0.8944625,108720.0,108710.0,0.1838771]
[1749502880111,0.8985191,108720.0,108710.0,0.53659346]
[1749502880502,0.8995191,108720.0,108710.0,0.53659346]
[1749502881006,0.88561816,108720.0,108710.0,0.53659346]
[1749502881504,0.88561816,108720.0,108710.0,0.32687787]
[1749502881711,0.88461816,108720.0,108710.0,0.53859346]
[1749502882009,0.88361816,108720.0,108710.0,0.54518346]
[1749502882910,0.89804128,108720.0,108710.0,0.54518346]
[1749502883112,0.68832569,108720.0,108710.0,0.54518346]
[1749502883408,0.88361816,108720.0,108710.0,0.54518346]
[1749502883603,0.88361816,108720.0,108710.0,0.57638346]
[1749502884407,0.67390257,108720.0,108710.0,0.57638346]
[1749502884611,0.67390257,108720.0,108710.0,0.54518346]
[1749502884810,0.70540257,108720.0,108710.0,0.54518346]
[1749502886004,0.71940929,108720.0,108710.0,0.54518346]
[1749502886509,0.71940929,108720.0,108710.0,0.57728346]
[1749502887710,0.17284257,108720.0,108710.0,0.36756787]
[1749502887910,0.70636257,108720.0,108710.0,0.57728346]
[1749502889310,0.70636257,108720.0,108710.0,0.59107346]
[1749502893214,0.70636257,108720.0,108710.0,0.95187346]
[1749502894304,0.70572257,108720.0,108710.0,0.95187346]
[1749502894914,0.91543816,108720.0,108710.0,0.95187346]
[1749502895314,0.70572257,108720.0,108710.0,0.95187346]
[1749502896315,0.67422257,108720.0,108710.0,0.74215787]
[1749502896516,0.67422257,108720.0,108710.0,0.77525787]
[1749502896811,0.67422257,108720.0,108710.0,0.41445787]
[1749502897017,0.67422257,108720.0,108710.0,0.62417346]
[1749502899417,0.67422257,108720.0,108710.0,0.65687346]
[1749502900218,0.67422257,108720.0,108710.0,1.01767346]
[1749502901716,0.67422257,108720.0,108710.0,0.80795787]
[1749502902019,0.67422257,108720.0,108710.0,1.01767346]
[1749502903816,0.67682257,108720.0,108710.0,1.01767346]
[1749502904118,0.07984257,108720.0,108710.0,1.22738905]
[1749502904313,0.61532257,108720.0,108710.0,1.08438828]
[1749502904520,0.61492257,108720.0,108710.0,1.28498277]
[1749502904819,0.61532257,108720.0,108710.0,1.28498277]
[1749502905325,0.61532257,108720.0,108710.0,1.07526718]
[1749502906124,0.07984257,108720.0,108710.0,1.07526718]
[1749502906420,0.61580257,108720.0,108710.0,1.07526718]
[1749502907223,0.61580257,108720.0,108710.0,0.87467269]
[1749502908321,0.07984257,108720.0,108710.0,0.87467269]
[1749502908520,0.61560257,108720.0,108710.0,0.80789577]
[1749502908825,0.61560257,108720.0,108710.0,1.01761136]
[1749502909120,0.07984257,108720.0,108710.0,1.22732695]
[1749502909325,0.61568257,108720.0,108710.0,1.22732695]
[1749502909521,0.61528257,108720.0,108710.0,1.22732695]
[1749502909721,2.11568257,108720.0,108710.0,1.22732695]
[1749502911722,2.11568257,108720.0,108710.0,1.08438828]
[1749502913027,2.11568257,108720.0,108710.0,1.22732695]
[1749502913428,2.11512257,108720.0,108710.0,1.28498277]
[1749502914426,2.11512257,108720.0,108710.0,1.07526718]
[1749502914827,2.11512257,108720.0,108710.0,1.28498277]
[1749502915326,2.11512257,108720.0,108710.0,1.07526718]
[1749502915925,1.57984257,108720.0,108710.0,1.28498277]
[1749502916127,0.0054566,108720.0,108710.0,1.28498277]
[1749502916424,0.96784214,108760.0,108750.0,0.1838094]
[1749502916625,1.61842579,108760.0,108750.0,0.1838094]
[1749502916827,1.63277349,108760.0,108750.0,0.1838094]
[1749502917128,0.91410065,108760.0,108750.0,0.39352499]
[1749502917329,0.34358506,108760.0,108750.0,0.39352499]
[1749502917526,0.70478506,108760.0,108750.0,0.39352499]
[1749502917729,1.42349756,108760.0,108750.0,0.39352499]
[1749502917929,1.06269756,108760.0,108750.0,0.39352499]
[1749502918225,1.24038506,108760.0,108750.0,0.39352499]
[1749502918728,0.80909872,108760.0,108750.0,0.50778454]
[1749502918927,1.35369132,108760.0,108750.0,0.57208454]
[1749502919128,1.35369132,108760.0,108750.0,0.58587454]
[1749502919720,1.35369132,108760.0,108750.0,0.47620499]
[1749502920228,1.42721727,108760.0,108750.0,0.47620499]
[1749502920626,1.03370908,108760.0,108750.0,0.47620499]
[1749502920828,1.21742168,108760.0,108750.0,0.38074895]
[1749502921026,1.42713727,108760.0,108750.0,0.38074895]
[1749502921224,1.21742168,108760.0,108750.0,0.31644895]
[1749502921431,1.06633727,108760.0,108750.0,0.52616454]
[1749502921727,1.06633727,108760.0,108750.0,0.31644895]
[1749502921728,0.32114168,108760.0,108750.0,0.31644895]
[1749502921925,0.32114168,108760.0,108750.0,0.41190499]
[1749502921926,1.42905727,108760.0,108750.0,0.41190499]
[1749502923132,1.06825727,108760.0,108750.0,0.41190499]
[1749502923835,1.06825727,108760.0,108750.0,0.52616454]
[1749502924036,1.06825727,108760.0,108750.0,0.31644895]
[1749502924330,1.06825727,108760.0,108750.0,0.52616454]
[1749502924722,0.0956558,108760.0,108750.0,0.41190499]
[1749502924928,0.6328558,108760.0,108750.0,0.83600499]
[1749502925128,0.1993358,108760.0,108750.0,0.83600499]
[1749502925332,0.0956558,108760.0,108750.0,0.83600499]
[1749502925528,0.3608,108770.0,108750.0,1.16357877]
[1749502925732,0.82836709,108780.0,108770.0,0.1837757]
[1749502925938,1.39908268,108780.0,108770.0,0.1837757]
[1749502926136,1.22056709,108780.0,108770.0,0.39349129]
[1749502926328,1.05625842,108780.0,108770.0,0.39349129]
[1749502926646,1.06769559,108780.0,108770.0,0.39349129]
[1749502926832,1.56855157,108780.0,108770.0,0.1837757]
[1749502927238,1.35865481,108780.0,108770.0,0.1837757]
[1749502927436,0.92457481,108780.0,108770.0,0.1837757]
[1749502927644,1.46249481,108780.0,108770.0,0.1837757]
[1749502928542,0.71504039,108780.0,108770.0,0.1837757]
[1749502928737,1.25272039,108780.0,108770.0,0.1837757]
[1749502929039,1.26694289,108780.0,108770.0,0.1837757]
[1749502929738,1.47647731,108780.0,108770.0,0.1837757]
[1749502930037,1.47607731,108780.0,108770.0,0.1837757]
[1749502930439,1.47647731,108780.0,108770.0,0.1837757]
[1749502930746,0.93879731,108780.0,108770.0,0.1837757]
[1749502930951,1.47635731,108780.0,108770.0,0.1837757]
[1749502931142,0.54550409,108780.0,108770.0,0.1837757]
[1749502931447,1.29215851,108780.0,108770.0,0.1837757]
[1749502931748,1.29247851,108780.0,108770.0,0.1837757]
[1749502932137,1.47623731,108780.0,108770.0,0.2163757]
[1749502935546,1.47623731,108780.0,108770.0,0.1883657]
[1749502936850,0.93879731,108780.0,108770.0,0.1883657]
[1749502937051,1.47543731,108780.0,108770.0,0.1883657]
[1749502938153,1.26590289,108780.0,108770.0,0.1883657]
[1749502938353,1.47543731,108780.0,108770.0,0.1883657]
[1749502939952,1.47949391,108780.0,108770.0,0.1883657]
[1749502941153,1.47949391,108780.0,108770.0,0.2021557]
[1749502944850,1.47841391,108780.0,108770.0,0.2021557]
[1749502945554,1.47841391,108780.0,108770.0,0.31641525]
[1749502945950,1.47841391,108780.0,108770.0,0.2021557]
[1749502948157,1.47841391,108780.0,108770.0,0.31641525]
[1749502948947,1.47841391,108780.0,108770.0,0.34841525]
[1749502949154,0.94285391,108780.0,108770.0,0.34841525]
[1749502949354,1.47753391,108780.0,108770.0,0.34841525]
[1749502950058,1.23701949,108780.0,108770.0,0.34841525]
[1749502950256,1.44655391,108780.0,108770.0,0.38101525]
[1749502950958,1.44655391,108780.0,108770.0,0.41161525]
[1749502951160,1.23701949,108780.0,108770.0,0.41161525]
[1749502951360,1.65593853,108780.0,108770.0,0.41161525]
[1749502952664,1.23701949,108780.0,108770.0,0.41161525]
[1749502952856,1.65593853,108780.0,108770.0,0.62107477]
[1749502953164,1.02206069,108780.0,108770.0,0.41161525]
[1749502953361,1.41527901,108780.0,108770.0,0.41161525]
[1749502954156,1.41579901,108780.0,108770.0,0.41161525]
[1749502954660,1.41579901,108780.0,108770.0,0.44018013]
[1749502954862,0.98950069,108780.0,108770.0,0.44018013]
[1749502955058,1.38271891,108780.0,108770.0,0.44018013]
[1749502955454,1.17325939,108780.0,108770.0,0.64963965]
[1749502955656,1.59217843,108780.0,108770.0,0.64963965]
[1749502955857,1.59217843,108780.0,108770.0,0.44018013]
[1749502956061,1.59217843,108780.0,108770.0,0.64963965]
[1749502956963,1.59217843,108780.0,108770.0,0.44018013]
[1749502958363,1.38271891,108780.0,108770.0,0.64963965]
[1749502959364,0.84747891,108780.0,108770.0,0.64963965]
[1749502959556,1.38427891,108780.0,108770.0,0.64963965]
[1749502960863,0.99106069,108780.0,108770.0,0.76396521]
[1749502961064,0.99106069,108780.0,108770.0,0.62114078]
[1749502961367,1.38427911,108780.0,108770.0,0.62114078]
[1749502962364,1.02347911,108780.0,108770.0,0.62114078]
[1749502962565,1.02347911,108780.0,108770.0,0.50681522]
[1749502962766,0.83972021,108780.0,108770.0,0.62112998]
[1749502962958,1.02347911,108780.0,108770.0,0.62112998]
[1749502963267,1.38427911,108780.0,108770.0,0.41167046]
[1749502963457,1.38427911,108780.0,108770.0,0.62112998]
[1749502964661,0.84747911,108780.0,108770.0,0.62112998]
[1749502964966,1.38367911,108780.0,108770.0,0.62112998]
[1749502967067,0.84747911,108780.0,108770.0,0.64963965]
[1749502967256,1.17385959,108780.0,108770.0,0.64963965]
[1749502967461,1.19956021,108780.0,108770.0,0.64963965]
[1749502967659,1.38331891,108780.0,108770.0,0.62112914]
[1749502968367,0.09346069,108780.0,108770.0,0.62112914]
[1749502968554,0.73512021,108780.0,108770.0,0.62112914]
[1749502968756,1.5283211,108780.0,108770.0,0.2341557]
[1749502968961,1.5924211,108780.0,108770.0,0.2341557]
[1749502969366,1.38296158,108780.0,108770.0,0.2341557]
[1749502969764,1.38296158,108780.0,108770.0,0.34846962]
[1749502969962,1.5924211,108780.0,108770.0,0.34846962]
[1749502970571,1.38296158,108780.0,108770.0,0.55792914]
[1749502971366,1.17350206,108780.0,108770.0,0.34846962]
[1749502971568,0.49110167,108780.0,108770.0,0.55792914]
[1749502971870,0.4372966,108780.0,108770.0,0.50491522]
[1749502972071,0.64715612,108780.0,108770.0,0.64773965]
[1749502972466,0.0054566,108780.0,108770.0,1.00853965]
[1749502972866,0.0050566,108780.0,108770.0,1.02187512]
[1749502973068,0.4376166,108780.0,108770.0,1.02187512]
[1749502973366,0.4376166,108780.0,108770.0,0.8124156]
[1749502973571,0.4376166,108780.0,108770.0,1.02187512]
[1749502973770,0.0054566,108780.0,108770.0,1.4314462]
[1749502973963,0.23185952,108790.0,108780.0,0.1837588]
[1749502974162,0.0224,108790.0,108780.0,1.03406711]
[1749502974365,0.66601952,108790.0,108780.0,1.03406711]
[1749502974874,0.66601952,108790.0,108780.0,0.82460759]
[1749502974875,0.66593952,108790.0,108780.0,0.82460759]
[1749502975076,0.66593952,108790.0,108780.0,1.03506711]
[1749502975377,0.66569952,108790.0,108780.0,1.03606711]
[1749502975573,0.66609952,108790.0,108780.0,1.03606711]
[1749502976073,0.45664,108790.0,108780.0,1.03606711]
[1749502976277,0.66609952,108790.0,108780.0,1.03606711]
[1749502976774,0.66613952,108790.0,108780.0,1.03606711]
[1749502976970,0.66613952,108790.0,108780.0,0.90703024]
[1749502977176,0.45668,108790.0,108780.0,0.90703024]
[1749502977475,0.45668,108790.0,108780.0,1.04984711]
[1749502977664,0.66613952,108790.0,108780.0,1.05443711]
[1749502978077,0.66613952,108790.0,108780.0,0.91162024]
[1749502978674,0.84988152,108790.0,108780.0,0.95220915]
[1749502978870,1.21068152,108790.0,108780.0,0.38194963]
[1749502979070,1.27318152,108790.0,108780.0,0.38194963]
[1749502979265,1.48264104,108790.0,108780.0,0.2041288]
[1749502979469,1.27318152,108790.0,108780.0,0.31829002]
[1749502980875,1.063722,108790.0,108780.0,0.31829002]
[1749502981068,1.27318152,108790.0,108780.0,0.52774954]
[1749502981380,1.27314858,108790.0,108780.0,0.31829002]
[1749502981878,0.83926858,108790.0,108780.0,0.31829002]
[1749502982077,1.37830858,108790.0,108780.0,0.2041288]
[1749502982270,0.734642,108790.0,108780.0,0.2041288]
[1749502982470,1.168842,108790.0,108780.0,0.2041288]
[1749502983977,1.37826858,108790.0,108780.0,0.2041288]
[1749502984771,1.38232518,108790.0,108780.0,0.2681288]
[1749502985279,1.1728986,108790.0,108780.0,0.2681288]
[1749502986377,1.1728986,108790.0,108780.0,0.38229002]
[1749502987378,0.9891566,108790.0,108780.0,0.38229002]
[1749502987575,0.6338986,108790.0,108780.0,0.38229002]
[1749502987783,1.1722986,108790.0,108780.0,0.38229002]
[1749502988278,1.1722986,108790.0,108780.0,0.2681288]
[1749502989786,1.38172518,108790.0,108780.0,0.2681288]
[1749502990282,1.38172508,108790.0,108780.0,0.2681288]
[1749502990974,1.1722985,108790.0,108780.0,0.2681288]
[1749502991180,1.1722985,108790.0,108780.0,0.2041288]
[1749502991379,1.38172508,108790.0,108780.0,0.2041288]
[1749502991579,1.1722985,108790.0,108780.0,0.2041288]
[1749502991777,1.38172508,108790.0,108780.0,0.2041288]
[1749502991978,1.1722985,108790.0,108780.0,0.2041288]
[1749502992286,1.38172508,108790.0,108780.0,0.2041288]
[1749502994577,0.6338985,108790.0,108780.0,0.2041288]
[1749502994782,1.1088786,108790.0,108780.0,0.51005538]
[1749502994978,1.1088786,108790.0,108780.0,0.3006288]
[1749502995382,1.1389786,108790.0,108780.0,0.3006288]
[1749502995683,1.1389786,108790.0,108780.0,0.41479002]
[1749502995684,1.1696786,108790.0,108780.0,0.41479002]
[1749502996785,1.37910518,108790.0,108780.0,0.41479002]
[1749502997284,1.1696786,108790.0,108780.0,0.41479002]
[1749502999396,0.5651766,108790.0,108780.0,0.41479002]
[1749502999997,0.9259766,108790.0,108780.0,0.41479002]
[1749503001297,1.13537289,108790.0,108780.0,0.62418631]
[1749503001499,1.31911489,108790.0,108780.0,0.41479002]
[1749503002000,1.31911489,108790.0,108780.0,0.51002509]
[1749503002302,1.13537289,108790.0,108780.0,0.6244016]
[1749503002604,0.77457289,108790.0,108780.0,0.6244016]
[1749503003301,0.77457289,108790.0,108780.0,0.51002509]
[1749503003596,0.95831499,108790.0,108780.0,0.51002509]
[1749503005496,0.5651766,108790.0,108780.0,0.51002509]
[1749503005702,0.77457289,108790.0,108780.0,0.51002509]
[1749503005897,0.95831499,108790.0,108780.0,0.51002509]
[1749503006098,0.77457289,108790.0,108780.0,0.51002509]
[1749503006302,0.77457289,108790.0,108780.0,0.65284196]
[1749503006601,0.5651766,108790.0,108780.0,0.65284196]
[1749503006803,0.77457289,108790.0,108780.0,0.65284196]
[1749503007194,0.5651766,108790.0,108780.0,0.65284196]
[1749503007395,0.77457289,108790.0,108780.0,0.65284196]
[1749503007598,0.5651766,108790.0,108780.0,0.65284196]
[1749503007796,0.77457289,108790.0,108780.0,0.65284196]
[1749503008997,0.5651766,108790.0,108780.0,0.44344567]
[1749503009397,1.13537289,108790.0,108780.0,0.65284196]
[1749503010296,0.9259766,108790.0,108780.0,0.65284196]
[1749503010503,1.13537289,108790.0,108780.0,0.65284196]
[1749503012296,0.77457289,108790.0,108780.0,0.65284196]
[1749503012499,0.77457289,108790.0,108780.0,0.7672388]
[1749503012698,0.77457289,108790.0,108780.0,0.62442193]
[1749503012904,0.77417289,108790.0,108780.0,0.83381822]
[1749503013205,0.5696166,108790.0,108780.0,0.83381822]
[1749503014307,0.4631366,108790.0,108780.0,0.83381822]
[1749503015104,0.0268566,108790.0,108780.0,0.83381822]
[1749503015406,0.4625366,108790.0,108780.0,0.83381822]
[1749503015998,0.67193289,108790.0,108780.0,0.83381822]
[1749503016198,0.67233289,108790.0,108780.0,0.83381822]
[1749503016503,0.67233289,108790.0,108780.0,0.62442193]
[1749503016704,0.67233289,108790.0,108780.0,0.41502564]
[1749503016899,0.67233289,108790.0,108780.0,0.62442193]
[1749503017506,0.71068342,108790.0,108780.0,0.62442193]
[1749503017708,0.71068342,108790.0,108780.0,0.41502564]
[1749503017899,0.71068342,108790.0,108780.0,0.62442193]
[1749503019208,0.67233289,108790.0,108780.0,0.62442193]
[1749503019802,0.67233289,108790.0,108780.0,0.83381822]
[1749503020210,0.4629366,108790.0,108780.0,0.83381822]
[1749503020410,0.67233289,108790.0,108780.0,0.83381822]
[1749503020999,0.67233289,108790.0,108780.0,0.62442193]
[1749503022108,0.85607499,108790.0,108780.0,0.41502564]
[1749503022309,0.67233289,108790.0,108780.0,0.62442193]
[1749503022710,0.67233289,108790.0,108780.0,0.83381822]
[1749503022913,0.4629366,108790.0,108780.0,0.83381822]
[1749503023719,0.4629366,108790.0,108780.0,0.71942138]
[1749503023907,0.6466786,108790.0,108780.0,0.2701288]
[1749503024114,1.21687489,108790.0,108780.0,0.58944196]
[1749503024417,1.28227489,108790.0,108780.0,0.58944196]
[1749503024813,1.28227489,108790.0,108780.0,0.62074196]
[1749503025016,1.28227489,108790.0,108780.0,0.65114196]
[1749503027322,1.28227489,108790.0,108780.0,0.44174567]
[1749503027523,1.28227489,108790.0,108780.0,0.65114196]
[1749503028019,0.84619489,108790.0,108780.0,0.65114196]
[1749503028220,1.38819489,108790.0,108780.0,0.65114196]
[1749503028419,1.38819489,108790.0,108780.0,0.44174567]
[1749503028622,1.38819489,108790.0,108780.0,0.65114196]
[1749503032419,1.1787986,108790.0,108780.0,0.65114196]
[1749503032625,0.4619366,108790.0,108780.0,0.86053825]
[1749503032926,0.4615366,108790.0,108780.0,0.65114196]
[1749503033426,0.0264566,108790.0,108780.0,0.86053825]
[1749503033613,0.0264566,108790.0,108780.0,1.19291149]
[1749503033921,0.4616166,108790.0,108780.0,1.22133825]
[1749503034114,0.4620166,108790.0,108780.0,1.22133825]
[1749503034515,0.4620166,108790.0,108780.0,1.27911587]
[1749503034716,0.0268566,108790.0,108780.0,1.27911587]
[1749503034924,0.4620966,108790.0,108780.0,1.27911587]
[1749503035325,0.4620966,108790.0,108780.0,1.42207981]
[1749503035523,0.4620966,108790.0,108780.0,1.22148532]
[1749503035721,0.0268566,108790.0,108780.0,1.22148532]
[1749503036024,0.4618566,108790.0,108780.0,1.22148532]
[1749503037130,0.4618566,108790.0,108780.0,0.80269274]
[1749503037427,0.4618566,108790.0,108780.0,1.0120815]
[1749503040025,0.4618566,108790.0,108780.0,0.6512815]
[1749503040522,0.8226566,108790.0,108780.0,0.6512815]
[1749503041131,0.8530566,108790.0,108780.0,0.6512815]
[1749503042231,0.4180566,108790.0,108780.0,0.6512815]
[1749503042530,0.4917766,108790.0,108780.0,0.6512815]
[1749503043334,0.4917766,108790.0,108780.0,0.44189274]
[1749503043534,0.4917766,108790.0,108780.0,0.6512815]
[1749503043835,0.4917766,108790.0,108780.0,0.44189274]
[1749503044029,1.0363186,108790.0,108780.0,0.44189274]
[1749503044231,1.0663186,108790.0,108780.0,0.2989288]
[1749503044431,1.0663186,108790.0,108780.0,0.2041288]
[1749503044635,1.0663186,108790.0,108780.0,0.31844845]
[1749503044932,1.27570736,108790.0,108780.0,0.31844845]
[1749503045127,1.0663186,108790.0,108780.0,0.31844845]
[1749503046032,0.5217766,108790.0,108780.0,0.31844845]
[1749503046230,1.0663186,108790.0,108780.0,0.2041288]
[1749503046423,0.0264566,108790.0,108780.0,0.5649288]
[1749503046625,0.005,108800.0,108790.0,0.183742]
[1749503046929,0.005,108800.0,108790.0,0.42170594]
[1749503047134,0.0054,108800.0,108790.0,0.42170594]
[1749503047525,0.78633718,108820.0,108810.0,0.1837083]
[1749503047729,0.79873364,108820.0,108810.0,0.29791074]
[1749503047932,0.98242504,108820.0,108810.0,0.32667224]
[1749503048231,1.01402504,108820.0,108810.0,0.35987224]
[1749503048435,0.83073364,108820.0,108810.0,0.33108928]
[1749503048637,1.49961364,108820.0,108810.0,0.36358928]
[1749503048933,0.94977364,108820.0,108810.0,0.39518928]
[1749503049236,0.95017364,108820.0,108810.0,0.40896928]
[1749503049433,0.95217364,108820.0,108810.0,0.40896928]
[1749503050033,0.80273364,108820.0,108810.0,0.40896928]
[1749503050236,0.73073343,108820.0,108810.0,0.40896928]
[1749503050434,0.73073343,108820.0,108810.0,0.41355928]
[1749503050938,0.73033343,108820.0,108810.0,0.41355928]
[1749503051235,0.73073343,108820.0,108810.0,0.41355928]
[1749503051442,0.73033343,108820.0,108810.0,0.41355928]
[1749503051734,0.73073343,108820.0,108810.0,0.41355928]
[1749503052538,0.73073343,108820.0,108810.0,0.2993783]
[1749503052729,1.09263254,108820.0,108810.0,0.2993783]
[1749503052927,0.73183254,108820.0,108810.0,0.2993783]
[1749503053133,1.4738613,108820.0,108810.0,0.2993783]
[1749503053841,1.29718171,108820.0,108810.0,0.2993783]
[1749503054046,1.33473047,108820.0,108810.0,0.2993783]
[1749503054237,1.50657047,108820.0,108810.0,0.2993783]
[1749503054446,1.69026187,108820.0,108810.0,0.2020783]
[1749503054740,1.71366187,108820.0,108810.0,0.2020783]
[1749503054946,1.71387104,108820.0,108810.0,0.2020783]
[1749503056440,1.9232598,108820.0,108810.0,0.2020783]
[1749503056836,1.71387104,108820.0,108810.0,0.2020783]
[1749503057143,2.26867104,108820.0,108810.0,0.2020783]
[1749503057542,2.26827104,108820.0,108810.0,0.2020783]
[1749503057846,2.26867104,108820.0,108810.0,0.2020783]
[1749503058542,2.05928228,108820.0,108810.0,0.2020783]
[1749503058741,2.26867104,108820.0,108810.0,0.2020783]
[1749503059739,2.27272764,108820.0,108810.0,0.2020783]
[1749503061547,2.06333888,108820.0,108810.0,0.2020783]
[1749503061745,2.27272764,108820.0,108810.0,0.2020783]
[1749503061945,2.3990524,108820.0,108810.0,0.01837]
[1749503062150,2.86092808,108820.0,108810.0,0.01837]
[1749503062344,2.13740808,108820.0,108810.0,0.01837]
[1749503062644,2.86084808,108820.0,108810.0,0.01837]
[1749503062838,2.65145932,108820.0,108810.0,0.2020787]
[1749503063441,2.86084808,108820.0,108810.0,0.2020787]
[1749503063641,2.13740808,108820.0,108810.0,0.2020787]
[1749503063842,2.85976808,108820.0,108810.0,0.2020787]
[1749503064243,2.60976808,108820.0,108810.0,0.2020787]
[1749503064841,1.37633456,108820.0,108810.0,0.2020787]
[1749503065047,1.88561888,108820.0,108810.0,0.2020787]
[1749503065248,2.09540764,108820.0,108810.0,0.2020787]
[1749503065452,2.09500764,108820.0,108810.0,0.2020787]
[1749503065654,2.09540764,108820.0,108810.0,0.2020787]
[1749503066556,1.73460764,108820.0,108810.0,0.2020787]
[1749503066760,1.52521888,108820.0,108810.0,0.2020787]
[1749503066951,1.73460764,108820.0,108810.0,0.2020787]
[1749503067652,2.09540764,108820.0,108810.0,0.2020787]
[1749503068655,1.73460764,108820.0,108810.0,0.2020787]
[1749503068852,2.09540764,108820.0,108810.0,0.2020787]
[1749503069252,2.09196764,108820.0,108810.0,0.2020787]
[1749503069459,1.52177888,108820.0,108810.0,0.2020787]
[1749503069654,2.09196764,108820.0,108810.0,0.2020787]
[1749503070153,1.52177888,108820.0,108810.0,0.2020787]
[1749503070359,2.09196764,108820.0,108810.0,0.2020787]
[1749503070860,1.73116764,108820.0,108810.0,0.2020787]
[1749503071061,0.97589888,108820.0,108810.0,0.2020787]
[1749503071256,1.18528764,108820.0,108810.0,0.2020787]
[1749503071469,2.09052764,108820.0,108810.0,0.2020787]
[1749503071757,1.72972764,108820.0,108810.0,0.2020787]
[1749503072062,2.09052764,108820.0,108810.0,0.2020787]
[1749503072465,1.18528764,108820.0,108810.0,0.2020787]
[1749503072657,2.26128764,108820.0,108810.0,0.2020787]
[1749503073257,2.26064764,108820.0,108810.0,0.2020787]
[1749503073854,2.26024764,108820.0,108810.0,0.2020787]
[1749503074164,2.01925888,108820.0,108810.0,0.2020787]
[1749503074460,2.01841888,108820.0,108810.0,0.2638787]
[1749503074664,2.22780764,108820.0,108810.0,0.2638787]
[1749503074865,2.01841888,108820.0,108810.0,0.2638787]